Cogmind - Beta 13 @@@ ROGUE MODE // 2024.04.01 @ 23:38:18 Player: Oozyorphan Result: Destroyed by 03-H5J(R) with Subdweller Shrapnel Launcher Performance ------------- Evolutions (0) 0 Regions Visited (3) 600 Robots Destroyed (9) 45 Value Destroyed (266) 266 Prototype IDs (0) 0 Alien Tech Used (0) 0 Bonus (-135) -135 TOTAL SCORE: 776 Bonus ------- Friendly Fire -135 Cogmind --------- Core Integrity 0/250 Matter 251/300 Energy 196/200 System Corruption 0% Temperature Cool (2) Movement Walking (120) Location -10/Subcaves Parts ------- > --- POWER (1) -------- Subdweller Power Source > --- PROPULSION (2) --- Aluminum Leg Aluminum Leg > --- UTILITY (2) ------ Subdweller Optics Targeting Computer > --- WEAPON (2) ------- (None) > --- INVENTORY (5) ---- Heat Sink Peak State ------------ > --- POWER ------------ Subdweller Power Source > --- PROPULSION ------- Aluminum Leg Aluminum Leg > --- UTILITY ---------- Subdweller Optics Targeting Computer > --- WEAPON ----------- Beamcaster Light Cannon > --- INVENTORY -------- Heat Sink [Rating: 13] Favorites ----------- Power Light Ion Engine Engine Light Ion Engine Propulsion Aluminum Leg Leg Aluminum Leg Utility Huge Storage Unit Device Heat Sink Storage Huge Storage Unit Processor Visual Processing Unit Protection Scrap Shield Weapon EM Pulse Gun Energy Gun EM Pulse Gun Ballistic Gun Assault Rifle Ballistic Cannon Light Cannon Build | -11 -10 -10 -10 ------- Run | Yrd Mat Min Sub Slots Evolved . | . . . . Power . | . . . . Propulsion . | . . . . Utility . | . . . . Weapon . | . . . . Parts Attached 17 | 6 3 . 8 Power 2 | 1 . . 1 Engine 2 | 1 . . 1 Core . | . . . . Reactor . | . . . . Propulsion 4 | 2 . . 2 Treads . | . . . . Leg 4 | 2 . . 2 Wheel . | . . . . Hover . | . . . . Flight . | . . . . Utility 6 | 1 2 . 3 Device 2 | 1 . . 1 Storage 1 | . 1 . . Processor 2 | . 1 . 1 Hackware . | . . . . Protection 1 | . . . 1 Artifact . | . . . . Weapon 5 | 2 1 . 2 Energy Gun 2 | 1 . . 1 Energy Cannon . | . . . . Ballistic Gun 2 | 1 . . 1 Ballistic Cannon 1 | . 1 . . Launcher . | . . . . Special Weapon . | . . . . Impact Weapon . | . . . . Slashing Weapon . | . . . . Piercing Weapon . | . . . . Special Melee Weapon . | . . . . Unidentified Prototypes . | . . . . Parts Lost 6 | . . . 6 Power 1 | . . . 1 Propulsion 1 | . . . 1 Utility 1 | . . . 1 Weapon 3 | . . . 3 Highest Loss Streak 4 | . . . 4 To Critical Strikes . | . . . . Average Slot Usage (%) 96 | . 99 100 83 Engine 13 | . 14 14 10 Leg 28 | . 28 28 28 Device 2 | . 3 . 3 Storage 10 | . 13 14 . Processor 10 | . 10 14 4 Protection 1 | . . . 6 Energy Gun 13 | . 14 14 11 Ballistic Gun 2 | . 5 . 2 Ballistic Cannon 12 | . 8 14 14 Naked Turns . | . . . . Heaviest Build 88 | 8 88 88 88 Greatest Support 20 | 20 20 20 20 Greatest Overweight (x) 4 | . 4 4 4 Average Overweight (x) 1 | . 3 4 . Largest Inventory Capacity 25 | 5 25 25 25 Average Capacity 19 | 5 24 25 5 Most Carried 8 | 4 8 8 8 Average Carried 6 | 1 6 7 3 Final Capacity 25 | 5 25 25 5 Final Carried 8 | 3 8 6 1 Class Distribution -------------------- 93% | Mutant 6% | Scavenger-Mutant Dominant Class ---------------- Mutant | -10/Materials Mutant | -10/Mines Mutant | -10/Subcaves Resources | -11 -10 -10 -10 ----------- Run | Yrd Mat Min Sub Matter Collected 404 | 253 50 . 101 Remotely . | . . . . Salvage Created 323 | 44 50 . 229 Parts 29 | 4 9 . 16 Haulers Intercepted . | . . . . Recyclers Shooed . | . . . . Parts Field Recycled . | . . . . Retrieved Matter . | . . . . Parts Self-Destructed 1 | . . . 1 Prevented . | . . . . Kills | -11 -10 -10 -10 ------- Run | Yrd Mat Min Sub Combat Hostiles Destroyed 6 | 1 . . 5 Guns 4 | 1 . . 3 Cannons 2 | . . . 2 Classes Destroyed 3 | 1 1 . 1 Watcher 2 | . 2 . . Grunt 1 | 1 . . . Subdweller 5 | . . . 5 Thug 1 | . . . 1 Best Kill Streak 4 | 1 1 . 4 Combat Bots Only 4 | 1 . . 4 Max Kills in Single Turn 2 | 1 1 . 2 Gunslinging . | . . . . Exploded . | . . . . Melee . | . . . . Uniques/NPCs Destroyed . | . . . . Combat | -11 -10 -10 -10 -------- Run | Yrd Mat Min Sub Hostile Shots Fired 47 | 1 . . 46 Missed 15 | . . . 15 Damage Taken 1043 | 12 . . 1031 Core 258 | . . . 258 Absorbed by Shields . | . . . . Core Remaining (%) 100 | 100 . . . Volleys Fired 24 | 1 4 . 19 Largest 2 | 2 2 . 2 Hottest 110 | 60 75 . 110 Shots Fired 48 | 2 8 . 38 Gun 28 | 2 7 . 19 Cannon 20 | . 1 . 19 Launcher . | . . . . Special . | . . . . Kinetic 31 | 1 4 . 26 Thermal 3 | . . . 3 Explosive . | . . . . Electromagnetic 14 | 1 4 . 9 Robot Hit Streak 11 | 2 2 . 11 Robot Miss Streak 2 | . 2 . 2 Penetration Max . | . . . . Secondary Targets . | . . . . Shots Hit Robots 34 | 2 3 . 29 Core Hits 18 | 2 2 . 14 Critical Kills 1 | . . . 1 Critical Parts Destroyed . | . . . . Critical Strikes 1 | . . . 1 Destroy 1 | . . . 1 Melee Attacks . | . . . . Impact . | . . . . Slashing . | . . . . Piercing . | . . . . Sneak Attacks . | . . . . Combat Hostiles . | . . . . Follow-up Attacks . | . . . . Damage Inflicted 588 | 25 64 . 499 Guns 322 | 25 64 . 233 Cannons 266 | . . . 266 Explosions . | . . . . Melee . | . . . . Ramming . | . . . . Kinetic 340 | 12 . . 328 Thermal 66 | . . . 66 Explosive . | . . . . Electromagnetic 182 | 13 64 . 105 Impact . | . . . . Slashing . | . . . . Piercing . | . . . . Highest Corruption . | . . . . Average Corruption . | . . . . Corruption Purged . | . . . . Corruption Blocked . | . . . . Overload Shots . | . . . . Overflow Damage . | . . . . Projectiles . | . . . . Explosions . | . . . . Melee . | . . . . Knockbacks 1 | . . . 1 Impact . | . . . . Kinetic 1 | . . . 1 Secondary . | . . . . Self-Inflicted Damage . | . . . . Shots . | . . . . Rammed . | . . . . Targets Rammed . | . . . . Kicked . | . . . . Crushed . | . . . . Highest Temperature 264 | . 15 . 264 Average Temperature 141 | . 10 . 166 Received Heat Transfer 459 | 6 . . 453 Siege Activations . | . . . . Robots Corrupted . | . . . . Combat Hostiles . | . . . . Parts Fried . | . . . . Impact Corruptions . | . . . . Robots Melted . | . . . . Combat Hostiles . | . . . . Parts Melted . | . . . . Heat Transferred 111 | . . . 111 Parts Sabotaged . | . . . . Parts Stolen . | . . . . Parts Stripped . | . . . . Power Chain Reactions . | . . . . Alert | -11 -10 -10 -10 ------- Run | Yrd Mat Min Sub Peak Influence 57 | 20 57 . . Initial 13 | . 13 . . Average 11 | 6 28 . . Maximum Alert Level . | . . . . Low Security (%) 100 | 100 100 100 . Level 1 . | . . . . Level 2 . | . . . . Level 3 . | . . . . Level 4 . | . . . . Level 5 . | . . . . High Security . | . . . . Max Security . | . . . . Squads Dispatched . | . . . . Investigation . | . . . . Extermination . | . . . . Reinforcement . | . . . . Assault . | . . . . Garrison . | . . . . Intercept . | . . . . Searches Triggered . | . . . . Construction Impeded . | . . . . Haulers Reinforced . | . . . . Active Scanning Responses . | . . . . Cargo Convoy Interrupts . | . . . . Stealth | -11 -10 -10 -10 --------- Run | Yrd Mat Min Sub Distress Signals . | . . . . Communications Jammed . | . . . . Distress Signals . | . . . . Times Spotted 15 | 1 2 . 12 Peak Tracking Total 6 | 1 1 . 6 Tactical Retreats . | . . . . Traps | -11 -10 -10 -10 ------- Run | Yrd Mat Min Sub Traps Triggered . | . . . . Indirectly . | . . . . Trap Hack Attempts . | . . . . Triggered . | . . . . Disarmed . | . . . . Reprogrammed . | . . . . Reused . | . . . . Traps Extracted . | . . . . Installed . | . . . . Triggered . | . . . . Machines | -11 -10 -10 -10 ---------- Run | Yrd Mat Min Sub Machines Disabled . | . . . . Max in Single Turn . | . . . . Machines Repaired . | . . . . Machines Dismantled . | . . . . Machines Sabotaged . | . . . . Overloaded Fab Kills . | . . . . Hacking | -11 -10 -10 -10 --------- Run | Yrd Mat Min Sub Machines Accessed . | . . . . Terminals . | . . . . Fabricators . | . . . . Repair Stations . | . . . . Recycling Units . | . . . . Scanalyzers . | . . . . Garrison Access . | . . . . Total Hacks . | . . . . Successful . | . . . . Failed . | . . . . Catastrophic . | . . . . Database Lockouts . | . . . . Manual . | . . . . Terminals . | . . . . Fabricators . | . . . . Repair Stations . | . . . . Recycling Units . | . . . . Scanalyzers . | . . . . Garrison Access . | . . . . Terminal Hacks . | . . . . Fabricator Hacks . | . . . . Repair Station Hacks . | . . . . Recycling Unit Hacks . | . . . . Scanalyzer . | . . . . Garrison Access Hacks . | . . . . Unauthorized Hacks . | . . . . Terminals . | . . . . Fabricators . | . . . . Repair Stations . | . . . . Recycling Units . | . . . . Scanalyzers . | . . . . Garrison Access . | . . . . Data Cores Recovered . | . . . . Used . | . . . . Hacking Detections . | . . . . Full Trace Events . | . . . . Feedback Events . | . . . . Feedback Blocked . | . . . . Robot Schematics Acquired . | . . . . Robots Built . | . . . . Authchips . | . . . . Time . | . . . . Total Robot Build Rating . | . . . . Part Schematics Acquired . | . . . . Parts Built . | . . . . Authchips . | . . . . Time . | . . . . Total Part Build Rating . | . . . . Parts Repaired . | . . . . Time . | . . . . Parts Recycled . | . . . . Recycled Matter . | . . . . Retrieved Matter . | . . . . Retrieved Components . | . . . . Parts Scanalyzed . | . . . . Part Schematics Acquired . | . . . . Parts Damaged . | . . . . Bothacking | -11 -10 -10 -10 ------------ Run | Yrd Mat Min Sub Used RIF Installer . | . . . . Robots Hacked . | . . . . Non-combat . | . . . . Combat . | . . . . Robot Hacks Applied . | . . . . Relay Couplers Released . | . . . . Fabnet Peak Effective % . | . . . . Robots Rewired . | . . . . Allies Hacked . | . . . . Hacks Repelled . | . . . . Allies | -11 -10 -10 -10 -------- Run | Yrd Mat Min Sub Total Allies . | . . . . Largest Group . | . . . . Highest-Rated Group . | . . . . Highest-Rated Ally . | . . . . Total Orders . | . . . . Ally Attacks . | . . . . Total Damage . | . . . . Kills . | . . . . Allies Corrupted . | . . . . Allies Melted . | . . . . Intel | -11 -10 -10 -10 ------- Run | Yrd Mat Min Sub Robot Analysis Total . | . . . . Derelict Logs Recovered 1 | . . 1 . Drone Launches . | . . . . Drone Recoveries . | . . . . Exploration | -11 -10 -10 -10 ------------- Run | Yrd Mat Min Sub Turns Passed 1566 | 105 476 663 322 Spaces Moved 437 | 85 118 70 164 Core 20 | 20 . . . Treads . | . . . . Legs 417 | 65 118 70 164 Wheels . | . . . . Hover . | . . . . Flight . | . . . . Fastest Speed 50 | 50 120 400 120 Average Speed 245 | 103 385 400 152 Slowest Speed 400 | 120 400 400 400 Overloaded Moves . | . . . . Propulsion Burnouts . | . . . . Robots Hopped . | . . . . Cave-ins Triggered . | . . . . Exploration Rate (%) 14 | 5 28 9 14 Regions Visited 3 Branch Regions 2 Pre-discovered Areas . | . . . . Known Exits Taken 1 | . . 1 . Unknown Exits Taken 2 | 1 1 . . Scrap Searched . | . . . . Spaces Dug . | . . . . Terrain Destroyed . | . . . . Melee . | . . . . Projectile . | . . . . AOE . | . . . . Terrain Rammed . | . . . . Walls Destroyed . | . . . . Machines Disabled . | . . . . Actions | -11 -10 -10 -10 --------- Run | Yrd Mat Min Sub Total 890 | 100 132 457 201 Wait 388 | . 2 386 . Move 434 | 84 117 69 164 Hop . | . . . . Pick Up 21 | 9 6 . 6 Fast Attach . | . . . . Attach 15 | 6 1 . 8 Detach 1 | . . . 1 Swap 2 | . 2 . . Drop 5 | . . 2 3 Fire 24 | 1 4 . 19 Melee . | . . . . Ram . | . . . . Kick . | . . . . Crush . | . . . . Escape Stasis . | . . . . Rewire . | . . . . Trap . | . . . . Miscellaneous . | . . . . Route ------- -11/Scrapyard -10/Materials -10/Mines -10/Subcaves History --------- Turn | Location | Event 2 | -11/Scrapyard | Met Revision 17 67 | -11/Scrapyard | Discovered new exit (range 8) 106 | -11/Scrapyard | Entered Materials 309 | -10/Materials | Build established: Mutant 505 | -10/Materials | Discovered new exit (range 15) 582 | -10/Materials | Entered Mines 606 | -10/Mines | Identified exit to Subcaves 1245 | -10/Mines | Entered Subcaves 1269 | -10/Subcaves | Shifting Twisted Machinery released Sub. Monowheel 1380 | -10/Subcaves | Ambushed by swarm of Subdwellers 1383 | -10/Subcaves | Ambushed by Subdwellers from Twisted Machinery 1431 | -10/Subcaves | Lost 4 allies 1454 | -10/Subcaves | Lost 4 parts (1p1n1u1w) 1520 | -10/Subcaves | Shifting Twisted Machinery released Sub. Power Source 1522 | -10/Subcaves | Shifting Twisted Machinery released Riot Gun 1555 | -10/Subcaves | Core integrity fell below 50% 1564 | -10/Subcaves | Core integrity fell below 20% 1567 | -10/Subcaves | Destroyed by 03-H5J(R) with Subdweller Shrapnel Launcher Last Messages --------------- Acquired Beamcaster. YC-K62(O) collects matter. Dropped Assault Rifle. YC-K62(O) collects matter. Dropped Aluminum Leg. Acquired 3 matter. YC-K62(O) collects matter. Subatomizers dissect the Carbon-fiber Leg. Acquired Sub. Power Source. YC-K62(O) collects matter. Subatomizers dissect the Carbon-fiber Leg, destroying it. YC-K62(O) collects matter. PC-0SP(u) builds Twisted Machinery. Sub. Power Source falls loose from the Twisted Machinery. Riot Gun falls loose from the Twisted Machinery. OV-K24(R) destroyed. Lgt. Cannon destroyed. Beamcaster destroyed. Map ----- +----------------------------------------------------+ | ????????????????# ??????????# #??? | | ?????????????????# #?????????## #???? | | ????????????????## #?????????# ##???? | | ???????????????##"[ #?????????## #????? | | ??????????????## """ " #####????## #????? | | ??????????????# * ## ###### ##????? | | ???????????????# " #?????? | | ??????????????????# " #?????? | | ??????????????????## # # ## # ## ###?????? | | ??????????????????## #"" ########???????? | | ?????????????????## "" #?????????????? | | ?????????????????# ###""# #?????????? | | ?????????????????##" ##?#"" ???????????? | | ??????????????????## ##?#####" ??????????? | | ???????????????????# ##??????? ?????????? | | ???????????????????## #????????# ???????? | | ???????????????????## #?????????? ??????? | | ???????????????????# #??????????? ?????? | | ?????????????????### ##???????????? ???? | | ?????????????????# ##????????????? ???? | | ?????????????????## #??????????????????? | | ????????????????## ##??????????????????? | | ????????????????#;; ##;###????????????????? | | ????????????#####; ; ;;##???????????????? | | ????????????# ; ;; ;;###?????????????? | | ????????????# @ ; #?????????????? | | ???????????## ; ###"" ????????? | | ???????????# ""#????????? | | ???????????# ##????????? | | ???????????## % #?????????? | | ???????????# R""""#?????????? | | ???????????# %% ????????? | | ???????????## % ??????? | | ????????????# ## ##### ??????? | | ????????????###### ## ##?# #?????? ??????? | | ?????????????????###?##???# #??????????????? | | ???????????????????????????##??????????????? | | ???????????????????????????????????????????? | | ???????????????????????????????????????????? | | ???????????????????????????????????????????? | | ???????????????????????????????????????????? | | ???????????????????????????????????????????? | | ???????????????????????????????????????????? | | ???????????????????????????????????????????? | | ???????????????????????????????????????????? | | ???????????????????????????????????????????? | | ???????????????????????????????????????????? | | ???????????????????????????????????????????? | | ???????????????????????????????????????????? | | ???????????????????????????????????????????? | +----------------------------------------------------+ Best States ------------- Heat Dissipation 35 Energy Generation 15 Energy Capacity 200 Matter Stores 300 Matter Capacity 300 Sight Range 21 Terrain Scan Density 10 Armor Coverage 800 Evasion (%) 55 Targeting Accuracy 5 Item Schematics ----------------- None Robot Schematics ------------------ None Fabricated ------------ Nothing Alien Tech Used ----------------- None Achievements -------------- Backstab Challenges ------------ None Game ------ Seed StormNeutronDatajack Manual? 0 Play Time 00:09:29 Cumulative 0.8 hours Start 2024.04.01 @ 23:29:14 End 2024.04.01 @ 23:38:18 Sessions 1 Manual Loads 0 Difficulty Rogue Special Mode None Game No. 2 Rogue 2 Adventurer 0 Explorer 0 Win Type - Total 0 Types 0/0/0/0/0/0/0/0/0 Lore% 0 Gallery% 5 Achievement% 6 Wizard Run 0 Options --------- Layout 1 ASCII 0 Keyboard 0 Movement Mouse Keybinds 0 Fullscreen 1 Font 32/SmallcapsGlow Map View 50x35 Zoom Use 0% Tactical HUD 0 Map Filters NONE Filters NONE Steam 1 RUN: 7b51b0a0-65cf-4f46-8985-8800a2dcdf47